[Event "Western Asian Girls Chess-ch 2023"]
[Site "Colombo"]
[Date "2023.12.03"]
[Round "7.2"]
[White "Rindhiya V"]
[Black "Shohradova, Lala"]
[Result "1-0"]
[ECO "C14"]
[WhiteElo "1876"]
[BlackElo "1846"]
[Annotator "NA"]
[PlyCount "171"]
[EventDate "2023.11.30"]
[EventCountry "SRI"]
[SourceTitle "playchess.com"]
[Source "ChessBase"]
[SourceQuality "1"]
[TimeControl "5400+30"]

1. e4 {[%emt 0:00:02]} e6 {[%emt 0:01:18]} 2. d4 {[%emt 0:00:08]} d5 {[%emt 0:00:41]} 3. Nc3 {[%emt 0:00:07]} Nf6 {[%emt 0:00:20]} 4. Bg5 {[%emt 0:00:07]} Be7 {[%emt 0:00:07]} 5. e5 {[%emt 0:00:04]} Nfd7 {[%emt 0:00:06]} 6. Bxe7 {[%emt 0:00:08]} Qxe7 {[%emt 0:00:01]} 7. f4 {[%emt 0:00:10]} a6 {[%emt 0:00:28]} 8. Nf3 {[%emt 0:00:06]} c5 {[%emt 0:00:10]} 9. Qd2 {[%emt 0:00:14]} Nc6 {[%emt 0:02:20]} 10. dxc5 {[%emt 0:00:05]} Nxc5 {[%emt 0:00:36]} 11. Bd3 {[%emt 0:00:42]} f5 {[%emt 0:03:36]} 12. exf6 {[%emt 0:11:03]} Qxf6 {[%emt 0:00:03]} 13. O-O {[%emt 0:11:32]} O-O {[%emt 1:27:14]} 14. Ne5 {[%emt 0:02:34]} Bd7 {[%emt 0:00:00]} 15. Nxd7 {[%emt 0:04:11]} Nxd7 {[%emt 0:00:00]} 16. Kh1 {[%emt 0:00:10]} Rae8 {[%emt 0:00:00]} 17. f5 {[%emt 0:06:45]} Nb6 {[%emt 0:00:00]} 18. Rae1 {[%emt 0:15:20]} Nc4 {[%emt 0:00:00]} 19. Bxc4 {[%emt 0:11:59]} dxc4 {[%emt 0:00:00]} 20. Qe2 {[%emt 0:03:40]} Nd4 {[%emt 0:00:00]} 21. Qxc4 {[%emt 0:00:34]} Nxf5 {[%emt 0:00:00]} 22. Qe4 {[%emt 0:04:16]} Qh6 {[%emt 0:00:00]} 23. Kg1 {[%emt 0:03:24]} Rf7 {[%emt 0:00:00]} 24. Qd3 {[%emt 0:09:00]} Ref8 {[%emt 0:00:00]} 25. Ne4 {[%emt 0:02:08]} Qh5 {[%emt 0:00:00]} 26. h3 {[%emt 0:05:28]} Qh4 {[%emt 0:00:00]} 27. Nc5 {[%emt 0:03:12]} Nd4 {[%emt 0:00:00]} 28. Ne4 {[%emt 0:04:39]} Nc6 {[%emt 0:00:00]} 29. Ng3 {[%emt 0:01:32]} e5 {[%emt 0:00:00]} 30. Rxf7 {[%emt 0:00:47]} Rxf7 {[%emt 0:00:00]} 31. Rd1 {[%emt 0:00:47]} Nd4 {[%emt 0:00:00]} 32. Kh1 {[%emt 0:00:55]} g6 {[%emt 0:04:13]} 33. c3 {[%emt 0:00:29]} Ne6 {[%emt 0:00:37]} 34. Qd5 {[%emt 0:00:39]} Nf4 {[%emt 0:03:24]} 35. Qd8+ {[%emt 0:00:01]} Qxd8 {[%emt 0:00:03]} 36. Rd3 {[%emt 0:01:32]} Qd7 37. Rxd7 {[%emt 0:00:00]} Kg7 {[%emt 0:00:31]} 38. Rd8 {[%emt 0:00:00]} h5 {[%emt 0:01:13]} 39. Ne4 {[%emt 0:00:19]} Ne2 {[%emt 0:01:16]} 40. g3 {[%emt 0:00:35]} Nc1 {[%emt 0:00:21]} 41. Rd1 {[%emt 0:00:37]} Nxa2 {[%emt 0:00:23]} 42. Ra1 {[%emt 0:00:02]} Rf3 {[%emt 0:00:24]} 43. Rxa2 {[%emt 0:00:10]} Re3 {[%emt 0:00:01]} 44. Nd6 {[%emt 0:00:50]} Rxg3 {[%emt 0:00:11]} 45. Kh2 {[%emt 0:00:07]} Rd3 {[%emt 0:00:52]} 46. Nxb7 {[%emt 0:00:05]} e4 {[%emt 0:00:13]} 47. Nc5 {[%emt 0:00:50]} Rd2+ {[%emt 0:00:54]} 48. Kg3 {[%emt 0:00:05]} e3 {[%emt 0:00:45]} 49. Nxa6 {[%emt 0:00:28]} Rf2 {[%emt 0:00:23]} 50. Nb4 {[%emt 0:02:18]} h4+ {[%emt 0:00:59]} 51. Kg4 {[%emt 0:00:26]} e2 {[%emt 0:01:19]} 52. Nd3 {[%emt 0:00:03]} Rf1 {[%emt 0:00:02]} 53. Ra7+ {[%emt 0:00:21]} Kf8 {[%emt 0:00:14]} 54. Ra8+ {[%emt 0:01:01]} Kf7 {[%emt 0:00:15]} 55. Ra7+ {[%emt 0:00:35]} Ke8 {[%emt 0:00:05]} 56. Ra5 {[%emt 0:00:35]} Kf7 {[%emt 0:00:54]} 57. Re5 {[%emt 0:00:25]} Rd1 {[%emt 0:00:28]} 58. Rxe2 {[%emt 0:00:33]} Rxd3 {[%emt 0:00:01]} 59. Kxh4 {[%emt 0:00:01]} Kf6 {[%emt 0:00:12]} 60. Kg4 {[%emt 0:00:14]} g5 {[%emt 0:00:37]} 61. Rf2+ {[%emt 0:00:26]} Ke6 {[%emt 0:00:22]} 62. Rf3 {[%emt 0:00:21]} Rd2 {[%emt 0:00:35]} 63. b4 {[%emt 0:00:05]} Rd5 {[%emt 0:00:05]} 64. Kh5 {[%emt 0:01:16]} Re5 {[%emt 0:00:17]} 65. Kg6 {[%emt 0:00:44]} Rd5 {[%emt 0:01:21]} 66. Re3+ {[%emt 0:00:40]} Kd7 {[%emt 0:00:13]} 67. Re4 {[%emt 0:00:40]} Kc6 {[%emt 0:00:15]} 68. Re3 {[%emt 0:00:28]} Kb5 {[%emt 0:00:44]} 69. Rg3 {[%emt 0:00:11]} Kb6 {[%emt 0:00:19]} 70. Rxg5 {[%emt 0:00:23]} Rd3 {[%emt 0:00:04]} 71. h4 {[%emt 0:00:04]} Rxc3 {[%emt 0:00:07]} 72. h5 {[%emt 0:02:02]} Rc6+ {[%emt 0:00:16]} 73. Kh7 {[%emt 0:00:00]} Rc7+ {[%emt 0:00:10]} 74. Kh6 {[%emt 0:00:00]} Rc4 {[%emt 0:00:19]} 75. b5 {[%emt 0:00:00]} Rd4 {[%emt 0:00:20]} 76. Rf5 {[%emt 0:00:00]} Rg4 {[%emt 0:00:27]} 77. Kh7 {[%emt 0:01:34]} Rg1 {[%emt 0:00:48]} 78. h6 {[%emt 0:00:28]} Rg2 {[%emt 0:00:14]} 79. Kh8 {[%emt 0:00:04]} Ka5 {[%emt 0:00:15]} 80. h7 {[%emt 0:00:29]} Rg1 {[%emt 0:00:14]} 81. Rf7 {[%emt 0:00:13]} Kxb5 {[%emt 0:00:06]} 82. Rg7 {[%emt 0:00:04]} Ra1 {[%emt 0:00:21]} 83. Kg8 {[%emt 0:00:10]} Ra8+ {[%emt 0:00:18]} 84. Kf7 {[%emt 0:00:04]} Ra7+ {[%emt 0:00:08]} 85. Kg6 {[%emt 0:00:08]} Ra6+ {[%emt 0:00:03]} 86. Kg5 {[%emt 0:00:09]} 1-0

[Event "Western Asian Girls Chess-ch 2023"]
[Site "Colombo"]
[Date "2023.12.03"]
[Round "7.3"]
[White "Gamage, Desandhi Dhihansa"]
[Black "Sachi Jain"]
[Result "0-1"]
[ECO "C54"]
[WhiteElo "1608"]
[BlackElo "1743"]
[Annotator "NA"]
[PlyCount "90"]
[EventDate "2023.11.30"]
[EventCountry "SRI"]
[SourceTitle "playchess.com"]
[Source "ChessBase"]
[SourceQuality "1"]
[TimeControl "5400+30"]

1. e4 {[%emt 0:00:03]} e5 {[%emt 0:01:13]} 2. Nf3 {[%emt 0:00:06]} Nc6 {[%emt 0:00:04]} 3. Bc4 {[%emt 0:00:06]} Bc5 {[%emt 0:00:03]} 4. c3 {[%emt 0:00:04]} Nf6 {[%emt 0:00:11]} 5. d3 {[%emt 0:00:04]} d6 {[%emt 0:00:04]} 6. Bb3 {[%emt 0:00:04]} a6 {[%emt 0:00:15]} 7. h3 {[%emt 0:00:26]} Ba7 {[%emt 0:00:06]} 8. Nbd2 {[%emt 0:00:25]} Ne7 {[%emt 0:01:58]} 9. Nf1 {[%emt 0:04:43]} Ng6 {[%emt 0:00:22]} 10. Ng3 {[%emt 0:05:40]} O-O {[%emt 0:02:01]} 11. O-O {[%emt 0:01:22]} h6 {[%emt 0:01:12]} 12. Re1 {[%emt 0:00:46]} Re8 {[%emt 0:00:47]} 13. d4 {[%emt 0:00:28]} c5 {[%emt 0:00:34]} 14. Be3 {[%emt 0:01:20]} b5 {[%emt 0:01:25]} 15. Bc2 {[%emt 0:04:14]} Qc7 {[%emt 0:02:01]} 16. Qd2 {[%emt 0:05:44]} Bb7 {[%emt 0:06:53]} 17. dxe5 {[%emt 0:06:11]} dxe5 {[%emt 0:01:33]} 18. Qc1 {[%emt 0:08:02]} c4 {[%emt 0:04:24]} 19. Nf5 {[%emt 0:03:28]} Bxe3 {[%emt 0:03:09]} 20. Qxe3 {[%emt 0:01:48]} Rad8 {[%emt 0:02:36]} 21. g3 {[%emt 0:07:32]} Bc8 {[%emt 0:18:27]} 22. g4 {[%emt 0:06:30]} Nf4 {[%emt 0:04:03]} 23. Kh2 {[%emt 0:00:56]} Nh7 {[%emt 0:18:47]} 24. Rg1 {[%emt 0:06:33]} g6 {[%emt 0:05:45]} 25. Nxh6+ {[%emt 0:08:02]} Kg7 {[%emt 0:00:11]} 26. g5 {[%emt 0:00:40]} Nxh3 {[%emt 0:00:42]} 27. Rg3 {[%emt 0:01:06]} N3xg5 {[%emt 0:08:17]} 28. Nxg5 {[%emt 0:13:01]} Nxg5 {[%emt 0:00:08]} 29. Qxg5 {[%emt 0:00:41]} Rh8 {[%emt 0:00:26]} 30. Rf3 {[%emt 0:00:44]} Rxh6+ {[%emt 0:01:16]} 31. Kg2 {[%emt 0:00:03]} Re8 {[%emt 0:09:09]} 32. Qf6+ {[%emt 0:01:17]} Kg8 {[%emt 0:00:05]} 33. a4 {[%emt 0:03:56]} Re6 {[%emt 0:03:18]} 34. Qg5 {[%emt 0:00:10]} Rh5 {[%emt 0:00:03]} 35. Qg3 {[%emt 0:00:36]} Rb6 {[%emt 0:02:06]} 36. b4 {[%emt 0:07:27]} Qe7 {[%emt 0:01:39]} 37. Kf1 {[%emt 0:03:58]} Rh1+ {[%emt 0:00:11]} 38. Kg2 {[%emt 0:01:14]} Rxa1 {[%emt 0:00:03]} 39. Re3 {[%emt 0:00:00]} bxa4 {[%emt 0:01:37]} 40. f4 {[%emt 0:00:00]} exf4 {[%emt 0:00:33]} 41. Qxf4 {[%emt 0:00:00]} Qf6 {[%emt 0:01:06]} 42. Qc7 {[%emt 0:00:58]} Qf1+ {[%emt 0:01:09]} 43. Kg3 {[%emt 0:00:04]} Qh3+ {[%emt 0:00:11]} 44. Kf2 {[%emt 0:00:25]} Rf1+ {[%emt 0:00:18]} 45. Ke2 {[%emt 0:00:08]} Qg2# {[%emt 0:00:03]} 0-1

[Event "Western Asian Girls Chess-ch 2023"]
[Site "Colombo"]
[Date "2023.12.03"]
[Round "7.4"]
[White "Pallie, Ehsha Mishela"]
[Black "Gunawardhana, Devindya Oshini"]
[Result "1/2-1/2"]
[ECO "C84"]
[WhiteElo "1569"]
[BlackElo "1741"]
[Annotator "NA"]
[PlyCount "111"]
[EventDate "2023.11.30"]
[EventCountry "SRI"]
[SourceTitle "playchess.com"]
[Source "ChessBase"]
[SourceQuality "1"]
[TimeControl "5400+30"]

1. e4 {[%emt 0:00:03]} e5 {[%emt 0:00:07]} 2. Nf3 {[%emt 0:00:05]} Nc6 {[%emt 0:00:06]} 3. Bb5 {[%emt 0:00:05]} a6 {[%emt 0:00:04]} 4. Ba4 {[%emt 0:00:05]} Nf6 {[%emt 0:00:10]} 5. O-O {[%emt 0:00:05]} b5 {[%emt 0:00:05]} 6. Bb3 {[%emt 0:00:05]} Bb7 {[%emt 0:00:04]} 7. d3 {[%emt 0:00:09]} Be7 {[%emt 0:00:13]} 8. Nc3 {[%emt 0:00:22]} O-O {[%emt 0:00:26]} 9. a4 {[%emt 0:02:40]} Na5 {[%emt 0:01:40]} 10. Ba2 {[%emt 0:02:36]} b4 {[%emt 0:00:07]} 11. Ne2 {[%emt 0:02:14]} b3 {[%emt 0:13:18]} 12. cxb3 {[%emt 0:05:25]} d5 {[%emt 0:07:04]} 13. exd5 {[%emt 0:05:44]} Nxd5 {[%emt 0:03:23]} 14. Nxe5 {[%emt 0:08:02]} Nb4 {[%emt 0:05:42]} 15. d4 {[%emt 0:02:17]} Nxa2 {[%emt 0:02:48]} 16. Rxa2 {[%emt 0:00:09]} Bd5 {[%emt 0:00:37]} 17. Nc4 {[%emt 0:03:20]} Nxc4 {[%emt 0:01:07]} 18. bxc4 {[%emt 0:00:02]} Bxc4 {[%emt 0:00:02]} 19. b3 {[%emt 0:00:10]} Bxe2 {[%emt 0:13:56]} 20. Rxe2 {[%emt 0:01:04]} Bf6 {[%emt 0:00:04]} 21. Ba3 {[%emt 0:10:17]} Re8 {[%emt 0:01:08]} 22. Rxe8+ {[%emt 0:02:36]} Qxe8 {[%emt 0:01:15]} 23. Bc5 {[%emt 0:14:55]} Rd8 {[%emt 0:00:30]} 24. Re1 {[%emt 0:02:16]} Qd7 {[%emt 0:04:12]} 25. Qe2 {[%emt 0:01:04]} a5 {[%emt 0:02:50]} 26. Qa6 {[%emt 0:12:33]} Qd5 {[%emt 0:02:30]} 27. Qc4 {[%emt 0:05:04]} Qd7 {[%emt 0:02:13]} 28. Qb5 {[%emt 0:03:11]} Qxb5 {[%emt 0:02:13]} 29. axb5 {[%emt 0:00:02]} h6 {[%emt 0:00:01]} 30. b6 {[%emt 0:05:03]} cxb6 {[%emt 0:00:14]} 31. Bxb6 {[%emt 0:00:04]} Rb8 {[%emt 0:00:09]} 32. Bxa5 {[%emt 0:00:20]} Rxb3 {[%emt 0:00:05]} 33. g3 {[%emt 0:04:39]} Bxd4 {[%emt 0:00:04]} 34. Re2 {[%emt 0:00:17]} Rb5 {[%emt 0:00:42]} 35. Bc7 {[%emt 0:01:12]} g5 {[%emt 0:00:29]} 36. Kg2 {[%emt 0:00:16]} Kg7 {[%emt 0:00:32]} 37. Re4 {[%emt 0:01:10]} Ba7 {[%emt 0:00:41]} 38. Be5+ {[%emt 0:00:47]} Kg6 {[%emt 0:02:11]} 39. Bc3 {[%emt 0:00:24]} Rb3 {[%emt 0:00:21]} 40. Rc4 {[%emt 0:00:59]} Rb6 {[%emt 0:02:37]} 41. Bd4 {[%emt 0:00:19]} Ra6 {[%emt 0:00:05]} 42. Bxa7 {[%emt 0:00:13]} Rxa7 {[%emt 0:00:01]} 43. h4 {[%emt 0:00:47]} Ra6 {[%emt 0:00:07]} 44. hxg5 {[%emt 0:00:30]} hxg5 {[%emt 0:00:02]} 45. g4 {[%emt 0:00:29]} Ra3 {[%emt 0:00:06]} 46. Rc6+ {[%emt 0:00:46]} f6 {[%emt 0:00:04]} 47. f3 {[%emt 0:00:09]} Ra2+ {[%emt 0:00:05]} 48. Kg3 {[%emt 0:00:05]} Ra4 {[%emt 0:00:01]} 49. Rb6 {[%emt 0:00:26]} Kf7 {[%emt 0:00:05]} 50. Rc6 {[%emt 0:00:04]} Ra1 {[%emt 0:00:10]} 51. Rb6 {[%emt 0:00:13]} Rg1+ {[%emt 0:00:04]} 52. Kf2 {[%emt 0:00:04]} Ra1 {[%emt 0:00:05]} 53. Kg3 {[%emt 0:00:04]} Re1 {[%emt 0:00:16]} 54. Kf2 {[%emt 0:00:23]} Re5 {[%emt 0:00:10]} 55. Kg3 {[%emt 0:00:08]} Re3 {[%emt 0:00:03]} 56. Kf2 {[%emt 0:00:04]} 1/2-1/2

[Event "Western Asian Girls Chess-ch 2023"]
[Site "Colombo"]
[Date "2023.12.03"]
[Round "7.5"]
[White "Sanudula, K M Dahamdi"]
[Black "Gunasekara, K P K Hesara"]
[Result "1/2-1/2"]
[ECO "D00"]
[WhiteElo "1709"]
[BlackElo "1352"]
[Annotator "NA"]
[PlyCount "55"]
[EventDate "2023.11.30"]
[EventCountry "SRI"]
[SourceTitle "playchess.com"]
[Source "ChessBase"]
[SourceQuality "1"]
[TimeControl "5400+30"]

1. d4 {[%emt 0:13:29]} d5 {[%emt 0:00:12]} 2. e3 {[%emt 0:00:09]} Nf6 {[%emt 0:00:24]} 3. Bd3 {[%emt 0:00:03]} c5 {[%emt 0:00:50]} 4. c3 {[%emt 0:00:04]} Nc6 {[%emt 0:01:12]} 5. f4 {[%emt 0:00:04]} Bg4 {[%emt 0:01:55]} 6. Nf3 {[%emt 0:00:03]} c4 {[%emt 0:01:43]} 7. Bc2 {[%emt 0:00:04]} Qc8 {[%emt 0:01:54]} 8. Nbd2 {[%emt 0:02:56]} Bf5 {[%emt 0:01:24]} 9. b3 {[%emt 0:01:02]} b5 {[%emt 0:03:16]} 10. Bxf5 {[%emt 0:02:25]} Qxf5 {[%emt 0:00:24]} 11. a4 {[%emt 0:00:10]} b4 {[%emt 0:07:40]} 12. bxc4 {[%emt 0:02:31]} bxc3 {[%emt 0:00:27]} 13. Nb3 {[%emt 0:02:46]} dxc4 {[%emt 0:00:41]} 14. Nc5 {[%emt 0:00:02]} Nb4 {[%emt 0:01:57]} 15. O-O {[%emt 0:01:24]} e6 {[%emt 0:00:36]} 16. a5 {[%emt 0:09:14]} c2 {[%emt 0:22:48]} 17. Qe1 {[%emt 0:05:21]} Bxc5 {[%emt 0:01:50]} 18. dxc5 {[%emt 0:00:04]} Qxc5 {[%emt 0:03:34]} 19. Ba3 {[%emt 0:01:27]} Nfd5 {[%emt 0:02:02]} 20. Nd4 {[%emt 0:03:11]} Rc8 {[%emt 0:03:15]} 21. Qg3 {[%emt 0:01:34]} O-O {[%emt 0:11:46]} 22. Nxc2 {[%emt 0:03:28]} Rb8 {[%emt 0:00:32]} 23. f5 {[%emt 0:07:15]} exf5 {[%emt 0:04:38]} 24. Rxf5 {[%emt 0:01:29]} Qc8 {[%emt 0:00:18]} 25. Rf2 {[%emt 0:00:58]} Re8 {[%emt 0:01:32]} 26. Nd4 {[%emt 0:05:47]} Rxe3 {[%emt 0:01:24]} 27. Qg5 {[%emt 0:00:14]} f6 {[%emt 0:02:56]} 28. Qh4 {[%emt 0:01:03]} 1/2-1/2

[Event "Western Asian Girls Chess-ch 2023"]
[Site "Colombo"]
[Date "2023.12.03"]
[Round "7.6"]
[White "Bayrambayeva, Ogulsuray"]
[Black "Sagar Siya"]
[Result "1-0"]
[ECO "D79"]
[WhiteElo "1909"]
[BlackElo "1537"]
[Annotator "NA"]
[PlyCount "125"]
[EventDate "2023.11.30"]
[EventCountry "SRI"]
[SourceTitle "playchess.com"]
[Source "ChessBase"]
[SourceQuality "1"]
[TimeControl "5400+30"]

1. d4 {[%emt 0:02:28]} Nf6 {[%emt 0:00:07]} 2. c4 {[%emt 0:00:03]} g6 {[%emt 0:00:06]} 3. Nf3 {[%emt 0:01:01]} Bg7 {[%emt 0:00:10]} 4. g3 {[%emt 0:00:22]} c6 {[%emt 0:00:38]} 5. Bg2 {[%emt 0:00:19]} d5 {[%emt 0:00:49]} 6. cxd5 {[%emt 0:00:21]} cxd5 {[%emt 0:00:23]} 7. O-O {[%emt 0:00:15]} O-O {[%emt 0:00:38]} 8. Nc3 {[%emt 0:00:21]} Nc6 {[%emt 1:31:39]} 9. Bf4 {[%emt 1:29:50]} Nh5 {[%emt 0:00:00]} 10. Bg5 {[%emt 0:00:00]} h6 {[%emt 0:00:00]} 11. Be3 {[%emt 0:00:00]} Be6 {[%emt 0:00:00]} 12. Qd2 {[%emt 0:00:00]} Kh7 {[%emt 0:02:00]} 13. h3 {[%emt 0:00:00]} Qd7 {[%emt 0:00:00]} 14. g4 {[%emt 0:00:00]} Nf6 {[%emt 0:00:00]} 15. Rad1 {[%emt 0:00:00]} Rac8 {[%emt 0:00:00]} 16. Ne5 {[%emt 0:03:30]} Qd8 {[%emt 0:00:00]} 17. f4 {[%emt 0:00:00]} Qc7 {[%emt 0:00:00]} 18. Rc1 {[%emt 0:00:00]} Rcd8 {[%emt 0:00:00]} 19. b4 {[%emt 0:00:00]} Qb6 {[%emt 0:00:00]} 20. Nxc6 {[%emt 0:00:00]} bxc6 {[%emt 0:00:00]} 21. Na4 {[%emt 0:00:00]} Qb5 {[%emt 0:00:00]} 22. Nc5 {[%emt 0:00:00]} Bc8 {[%emt 0:00:00]} 23. a4 {[%emt 0:00:00]} Qb6 {[%emt 0:00:00]} 24. Rfd1 {[%emt 0:00:00]} Ne8 {[%emt 0:00:00]} 25. Bf2 {[%emt 0:00:00]} Nd6 {[%emt 0:06:30]} 26. e4 {[%emt 0:00:00]} e6 {[%emt 0:00:00]} 27. e5 {[%emt 0:00:00]} Nb7 {[%emt 0:01:00]} 28. a5 {[%emt 0:00:00]} Qc7 {[%emt 0:00:00]} 29. Na6 {[%emt 0:00:00]} Qe7 {[%emt 0:00:00]} 30. Rxc6 {[%emt 0:00:00]} Qe8 {[%emt 0:00:00]} 31. Rdc1 {[%emt 0:00:00]} Bd7 {[%emt 0:00:00]} 32. Rc7 {[%emt 0:00:00]} Bb5 {[%emt 0:00:00]} 33. Bf1 {[%emt 0:00:00]} Bxf1 {[%emt 0:00:00]} 34. Kxf1 {[%emt 0:00:00]} Rd7 {[%emt 0:00:00]} 35. Rxd7 {[%emt 0:00:00]} Qxd7 {[%emt 0:00:00]} 36. Rc7 {[%emt 0:00:00]} Qb5+ {[%emt 0:00:00]} 37. Qe2 {[%emt 0:00:00]} Qxe2+ {[%emt 0:00:00]} 38. Kxe2 {[%emt 0:00:00]} Nd8 {[%emt 0:05:30]} 39. Rxa7 {[%emt 0:00:00]} f6 {[%emt 0:00:00]} 40. exf6 {[%emt 0:00:00]} Rxf6 {[%emt 0:00:00]} 41. Be3 {[%emt 0:00:00]} Kg8 {[%emt 0:00:00]} 42. Ra8 {[%emt 0:00:00]} Rf8 {[%emt 0:00:00]} 43. b5 {[%emt 0:00:00]} Nb7 {[%emt 0:00:00]} 44. Rxf8+ {[%emt 0:00:00]} Kxf8 {[%emt 0:00:00]} 45. Nc5 {[%emt 0:00:00]} Nxa5 {[%emt 0:00:00]} 46. Nxe6+ {[%emt 0:00:00]} Kf7 {[%emt 0:00:00]} 47. Nxg7 {[%emt 0:00:00]} Kxg7 {[%emt 0:00:00]} 48. Kd3 {[%emt 0:00:00]} Kf6 {[%emt 0:05:00]} 49. Kc3 {[%emt 0:00:00]} Nc4 {[%emt 0:00:00]} 50. Bf2 {[%emt 0:00:00]} Ke6 {[%emt 0:00:00]} 51. Kb4 {[%emt 0:00:00]} Kd6 {[%emt 0:00:00]} 52. Bg3 {[%emt 0:00:00]} Kd7 {[%emt 0:02:00]} 53. Kc5 {[%emt 0:00:00]} Nd6 {[%emt 0:00:30]} 54. Be1 {[%emt 0:00:00]} Ne4+ {[%emt 0:00:30]} 55. Kxd5 {[%emt 0:00:00]} Nf6+ {[%emt 0:00:30]} 56. Ke5 {[%emt 0:00:00]} Ne8 {[%emt 0:00:30]} 57. Bb4 {[%emt 0:00:00]} Kc7 {[%emt 0:00:00]} 58. Bc5 {[%emt 0:00:00]} Kd7 {[%emt 0:00:00]} 59. f5 {[%emt 0:00:00]} gxf5 {[%emt 0:00:00]} 60. gxf5 {[%emt 0:00:00]} Nc7 {[%emt 0:02:00]} 61. f6 {[%emt 0:00:00]} Ke8 {[%emt 0:00:00]} 62. b6 {[%emt 0:00:00]} Na6 {[%emt 0:00:00]} 63. Ke6 {[%emt 0:00:00]} 1-0

[Event "Western Asian Girls Chess-ch 2023"]
[Site "Colombo"]
[Date "2023.12.03"]
[Round "7.7"]
[White "Newansa, M Esandi"]
[Black "Agajanova, Meryem"]
[Result "1-0"]
[ECO "D02"]
[WhiteElo "1531"]
[BlackElo "1854"]
[Annotator "NA"]
[PlyCount "73"]
[EventDate "2023.11.30"]
[EventCountry "SRI"]
[SourceTitle "playchess.com"]
[Source "ChessBase"]
[SourceQuality "1"]
[TimeControl "5400+30"]

1. d4 {[%emt 0:10:18]} d5 {[%emt 0:00:11]} 2. Bf4 {[%emt 0:00:05]} Nf6 {[%emt 0:00:35]} 3. e3 {[%emt 0:00:06]} e6 {[%emt 0:01:11]} 4. Nd2 {[%emt 0:00:28]} Bd6 {[%emt 0:00:31]} 5. Ngf3 {[%emt 0:00:09]} c5 {[%emt 0:01:40]} 6. c3 {[%emt 0:00:08]} Qc7 {[%emt 0:00:59]} 7. Bxd6 {[%emt 0:00:10]} Qxd6 {[%emt 0:00:04]} 8. Ne5 {[%emt 0:00:07]} Nbd7 {[%emt 0:01:10]} 9. f4 {[%emt 0:00:14]} c4 {[%emt 0:03:51]} 10. a4 {[%emt 0:01:48]} b6 {[%emt 0:03:15]} 11. Qf3 {[%emt 0:02:10]} Rb8 {[%emt 0:04:16]} 12. g4 {[%emt 0:02:06]} O-O {[%emt 0:10:52]} 13. Qh3 {[%emt 0:01:53]} a6 {[%emt 0:05:18]} 14. Be2 {[%emt 0:02:17]} b5 {[%emt 0:02:45]} 15. axb5 {[%emt 0:00:34]} axb5 {[%emt 0:00:17]} 16. O-O {[%emt 0:00:48]} b4 {[%emt 0:11:39]} 17. Ra2 {[%emt 0:02:35]} Nb6 {[%emt 0:08:49]} 18. Bd1 {[%emt 0:02:02]} b3 {[%emt 0:08:52]} 19. Ra3 {[%emt 0:00:45]} Bd7 {[%emt 0:00:14]} 20. g5 {[%emt 0:01:32]} Ne4 {[%emt 0:01:22]} 21. Nxe4 {[%emt 0:00:24]} dxe4 {[%emt 0:00:03]} 22. Be2 {[%emt 0:00:32]} Bb5 {[%emt 0:02:26]} 23. Ra5 {[%emt 0:06:38]} Qd5 {[%emt 0:07:13]} 24. Bg4 {[%emt 0:02:16]} f5 {[%emt 0:03:15]} 25. gxf6 {[%emt 0:00:35]} Rxf6 {[%emt 0:00:00]} 26. Bxe6+ {[%emt 0:03:32]} Qxe6 {[%emt 0:00:52]} 27. Qxe6+ {[%emt 0:00:09]} Rxe6 {[%emt 0:00:02]} 28. Rxb5 {[%emt 0:00:08]} Ra8 {[%emt 0:00:32]} 29. Rf2 {[%emt 0:00:30]} Ra4 {[%emt 0:03:02]} 30. Rc5 {[%emt 0:00:42]} h5 {[%emt 0:02:42]} 31. Kg2 {[%emt 0:11:01]} Kf8 {[%emt 0:04:03]} 32. Kh3 {[%emt 0:01:23]} h4 {[%emt 0:07:13]} 33. Rg2 {[%emt 0:03:33]} Ra1 {[%emt 0:02:05]} 34. Rc7 {[%emt 0:00:52]} Re1 {[%emt 0:03:52]} 35. Rgxg7 {[%emt 0:00:32]} Rxe3+ {[%emt 0:00:04]} 36. Kxh4 {[%emt 0:01:21]} Re2 {[%emt 0:01:34]} 37. Rcf7+ {[%emt 0:00:06]} 1-0